lending/lending_fUSD_20251107
["ID","MTS","AMOUNT","RATE_DAILY","PERIOD"]
[393327574,1762479391897,267.31439657,0.00038705,30]
[393327576,1762479422956,160.80684073,0.00038705,120]
[393327577,1762479426011,179.82329456,0.00038705,120]
[393327578,1762479439279,170.45791166,0.00038705,120]
[393327579,1762479440293,162.62801771,0.00038705,120]
[393327580,1762479452060,175.99441021,0.00038705,120]
[393327581,1762479457290,523.0,0.00030137,120]
[393327583,1762479484459,168.35580542,0.00038705,120]
[393327589,1762479511885,157.53273392,0.00038705,120]
[393327590,1762479522723,153.08597246,0.00038705,120]
[393327593,1762479613384,-1852.42,0.00016495,2]
[393327594,1762479613412,-301.0,0.00016495,2]
[393327595,1762479613439,-250.0,0.00016812,2]
[393327596,1762479613485,-250.0,0.00016837,2]
[393327597,1762479613511,-191.59,0.00016863,2]
[393327598,1762479613571,-500.0,0.000169,2]
[393327599,1762479613609,-187.87561023,0.00016985,2]
[393327600,1762479613665,-366.0,0.00017023,2]
[393327601,1762479613697,-283.09293269,0.00017051,2]
[393327602,1762479613867,-2892.0,0.00017085,2]
[393327603,1762479613897,-366.0,0.0001713,2]
[393327604,1762479613924,-187.87561023,0.00017143,2]
[393327605,1762479613952,-366.0,0.0001715,2]
[393327606,1762479613980,-1176.25877954,0.00017298,2]
[393327607,1762479614063,-23.74122046,0.00017298,2]
[393327608,1762479614090,-1200.0,0.00017299,2]
[393327609,1762479614117,-300.0,0.00017299,2]
[393327610,1762479614144,-548.97,0.000173,2]
[393327611,1762479614172,-2707.28412783,0.000173,2]
[393327612,1762479614197,-187.87561023,0.000173,2]
[393327613,1762479614478,-1073.34938889,0.000173,2]
[393327614,1762479614487,-164.29480042,0.000173,2]
[393327615,1762479614496,-234.27433508,0.00017367,2]
[393327616,1762479614509,-187.87561023,0.00017367,2]
[393327617,1762479614523,-64.26808296,0.00017367,2]
[393327618,1762479616283,-2220.86609947,0.00017367,2]
[393327619,1762479616316,-1073.34938889,0.00017367,2]
[393327620,1762479616345,-550.0,0.00017372,2]
[393327621,1762479616374,-324.9487087,0.00017373,2]
[393327622,1762479616403,-500.0,0.00017373,2]
[393327623,1762479616431,-170.58450293,0.00017373,2]
[393327624,1762479616527,-500.96404924,0.00017373,2]
[393327625,1762479616558,-167.42370191,0.00017373,2]
[393327626,1762479616590,-214.84899531,0.00017373,2]
[393327627,1762479616618,-500.0,0.00017373,2]
[393327628,1762479616647,-500.0,0.00017373,2]
[393327629,1762479616681,-557.67146288,0.00017373,2]
[393327630,1762479616711,-500.0,0.00017373,2]
[393327631,1762479616739,-504.43139356,0.00017373,2]
[393327632,1762479616767,-501.17210201,0.00017373,2]
[393327633,1762479616796,-500.0,0.00017373,2]
[393327634,1762479616828,-163.42,0.0001739,2]
[393327635,1762479616856,-151.0,0.00017397,2]
[393327636,1762479617138,-14.6126279,0.00017399,2]
[393327637,1762479617151,-163.42,0.00017399,2]
[393327638,1762479617168,-151.0,0.00017399,2]
[393327639,1762479617185,-314.03687198,0.00017399,2]
[393327640,1762479617194,-164.1097182,0.00017399,2]
[393327641,1762479619303,-335.8902818,0.00017399,2]
[393327642,1762479619334,-205.67071356,0.00017399,2]
[393327643,1762479619361,-494.22190987,0.00017399,2]
[393327644,1762479619392,-500.0,0.00017399,2]
[393327645,1762479619418,-156.35606888,0.00017399,2]
[393327646,1762479619459,-500.0,0.00017399,2]
[393327647,1762479619492,-500.0,0.00017399,2]
[393327648,1762479619521,-259.62997396,0.00017399,2]
[393327649,1762479619555,-500.0,0.00017399,2]
[393327650,1762479619710,-3096.47210386,0.000174,2]
[393327651,1762479619728,-10000.01,0.000174,2]
[393327652,1762479625635,-500.0,0.00017399,2]
[393327653,1762479625670,-9000.01,0.000174,2]
[393327654,1762479631380,-469.00969095,0.000173,2]
[393327655,1762479631418,-9061.9906181,0.000174,2]
[393327681,1762479668528,196.0,0.00038707,120]
[393327797,1762479913721,18063.426179,0.00038711,35]
[393327801,1762480034545,5000.0,0.00030137,120]
[393327802,1762480035531,5000.0,0.00030137,120]
[393327803,1762480036082,5000.0,0.00030137,120]
[393327804,1762480036623,5000.0,0.00030137,120]
[393327805,1762480037086,5000.0,0.00030137,120]
[393327806,1762480037559,5000.0,0.00030137,120]
[393327807,1762480038019,5000.0,0.00030137,120]
[393327808,1762480038509,5000.0,0.00030137,120]
[393327809,1762480039045,5000.0,0.00030137,120]
[393327810,1762480039478,5000.0,0.00030137,120]
[393327811,1762480039994,5000.0,0.00030137,120]
[393327812,1762480040658,5000.0,0.00030137,120]
[393327813,1762480041184,5000.0,0.00030137,120]
[393327814,1762480087056,5000.0,0.00030137,120]
[393327815,1762480087628,5000.0,0.00030137,120]
[393327816,1762480088108,5000.0,0.00030137,120]
[393327817,1762480099467,10138.06190078,0.00030137,120]
[393327824,1762480232308,-306.0,0.00016712,2]
[393327825,1762480232318,-105.61874155,0.00016712,2]
[393327826,1762480232329,-299.97675845,0.00016712,2]
[393327827,1762480232338,-271.42982194,0.000168,2]
[393327828,1762480232349,-229.29384789,0.000168,2]
[393327829,1762480232358,-250.0,0.00016847,2]
[393327830,1762480232367,-168.0,0.00016982,2]
[393327831,1762480232376,-805.33054218,0.00017,2]
[393327832,1762480232387,-194.66945782,0.00017,2]
[393327833,1762480232396,-233.5606889,0.00017112,2]
[393327834,1762480232405,-233.56068888,0.00017205,2]
[393327835,1762480232414,-344.83460552,0.00017212,2]
[393327836,1762480232426,-320.0,0.00017212,2]
[393327837,1762480232437,-160.16539448,0.00017212,2]
[393327838,1762480232446,-233.56068888,0.00017297,2]
[393327839,1762480232456,-399.57701787,0.00017298,2]
[393327840,1762480232502,-800.42298213,0.00017298,2]
[393327841,1762480232511,-472.82426564,0.00017298,2]
[393327842,1762480232523,-727.17573436,0.00017298,2]
[393327843,1762480232532,-300.0,0.00017298,2]
[393327844,1762480232542,-550.0,0.00017299,2]
[393327845,1762480232554,-3683.29984116,0.000173,2]
[393327846,1762480232564,-593.958,0.000173,2]
[393327847,1762480232574,-1000.0,0.000173,2]
[393327848,1762480232583,-858.67951113,0.000173,2]
[393327849,1762480232593,-2548.96631212,0.000173,2]
[393327850,1762480232605,-433.7485302,0.000173,2]
[393327851,1762480232615,-164.29480042,0.000173,2]
[393327852,1762480232624,-825.0,0.00017361,2]
[393327853,1762480232634,-858.67951111,0.00017367,2]
[393327854,1762480232644,-2548.9663121,0.00017367,2]
[393327855,1762480232654,-825.0,0.00017368,2]
[393327856,1762480232664,-500.0,0.00017372,2]
[393327857,1762480232893,-500.0,0.00017372,2]
[393327858,1762480232904,-500.0,0.00017372,2]
[393327859,1762480232914,-500.0,0.00017372,2]
[393327860,1762480232926,-500.0,0.00017372,2]
[393327861,1762480232935,-407.32847085,0.00017372,2]
[393327862,1762480232944,-500.0,0.00017372,2]
[393327863,1762480232954,-500.0,0.00017372,2]
[393327865,1762480232963,-500.0,0.00017372,2]
[393327867,1762480232972,-500.0,0.00017373,2]
[393327869,1762480232982,-500.49841701,0.00017373,2]
[393327871,1762480232991,-501.08491385,0.00017373,2]
[393327873,1762480233000,-500.0,0.00017373,2]
[393327875,1762480233010,-501.13639247,0.00017373,2]
[393327877,1762480233019,-500.0,0.00017373,2]
[393327879,1762480233028,-540.33648278,0.00017373,2]
[393327881,1762480233037,-500.0,0.00017373,2]
[393327883,1762480233047,-500.0,0.00017373,2]
[393327885,1762480233057,-500.0,0.00017373,2]
[393327887,1762480233066,-500.0,0.00017373,2]
[393327889,1762480233075,-500.0,0.00017373,2]
[393327891,1762480233084,-500.0,0.00017373,2]
[393327893,1762480233095,-1000.0,0.00017379,2]
[393327895,1762480233103,-40626.8359616,0.0001738,2]
[393327897,1762480233112,-22904.84991247,0.0001738,2]
[393327899,1762480233124,-922.41530248,0.0001738,2]
[393327903,1762480233150,-500.0,0.00017372,2]
[393327905,1762480233160,-3531.18679052,0.0001738,2]
[393327906,1762480233171,-506.02,0.0001738,2]
[393327907,1762480233182,-959.57088625,0.0001738,2]
[393327908,1762480233192,-1175.54681999,0.0001738,2]
[393327909,1762480233204,-3115.353793,0.0001738,2]
[393327910,1762480233234,-2401.34299756,0.0001738,2]
[393327911,1762480233245,-949.15632863,0.0001738,2]
[393327912,1762480233258,-373.2980954,0.0001738,2]
[393327976,1762480238240,-3350.5273687,0.0001738,2]
[393327977,1762480238250,-158.87217017,0.00017397,2]
[393327978,1762480238260,-500.0,0.00017399,2]
[393327979,1762480238270,-500.0,0.00017399,2]
[393327980,1762480238280,-584.33833167,0.00017399,2]
[393327981,1762480238292,-500.0,0.00017399,2]
[393327982,1762480238301,-500.0,0.00017399,2]
[393327983,1762480238312,-500.0,0.00017399,2]
[393327984,1762480238322,-170.94228525,0.00017399,2]
[393327985,1762480238331,-538.54706872,0.00017399,2]
[393327986,1762480238341,-500.0,0.00017399,2]
[393327987,1762480238352,-500.0,0.00017399,2]
[393327988,1762480238361,-500.0,0.00017399,2]
[393327989,1762480238371,-500.0,0.00017399,2]
[393327990,1762480238380,-345.95533691,0.00017399,2]
[393327991,1762480238390,-500.0,0.00017399,2]
[393327992,1762480238400,-500.0,0.00017399,2]
[393327993,1762480238410,-562.5597052,0.00017399,2]
[393327994,1762480238419,-101517.90133724,0.000174,2]
[393327995,1762480238438,-502.67953487,0.000174,2]
[393327996,1762480238449,-815.59887238,0.000174,2]
[393327997,1762480238460,-663.0270032,0.000174,2]
[393327998,1762480238472,-1148.14462424,0.000174,2]
[393327999,1762480238487,-97131.21264898,0.000174,2]
[393328000,1762480238562,-362.14408381,0.000174,2]
[393328012,1762480240358,-20017.03772462,0.000174,2]
[393328013,1762480240414,-54120.01020811,0.000174,2]
[393328014,1762480240468,-75842.35082895,0.000174,2]
[393328015,1762480240478,-349.77172037,0.000174,2]
[393328016,1762480240487,-1000.0,0.000174,2]
[393328017,1762480240496,-151.133,0.000174,2]
[393328018,1762480240506,-3038.487,0.000174,2]
[393328019,1762480240515,-151.0,0.000174,2]
[393328020,1762480240524,-549.16,0.000174,2]
[393328021,1762480240534,-549.16,0.000174,2]
[393328022,1762480240543,-300.0,0.000174,6]
[393328023,1762480240553,-669.09,0.00017412,2]
[393328024,1762480240563,-272.9,0.00017428,2]
[393328025,1762480240572,-858.67951111,0.00017433,2]
[393328026,1762480240580,-2548.9663121,0.00017433,2]
[393328027,1762480240590,-1002.0,0.00017438,2]
[393328028,1762480240599,-1002.0,0.00017478,2]
[393328029,1762480240608,-549.16,0.000175,2]
[393328030,1762480240617,-150.0,0.000175,2]
[393328031,1762480240627,-415.71,0.000175,2]
[393328032,1762480240636,-858.67951111,0.000175,2]
[393328033,1762480240645,-150.0,0.000175,2]
[393328034,1762480240655,-954.24,0.000175,2]
[393328035,1762480240664,-2548.9663121,0.000175,2]
[393328036,1762480240673,-700.0,0.000175,6]
[393328037,1762480240683,-366.0,0.00017535,2]
[393328038,1762480240695,-858.67951111,0.00017567,2]
[393328039,1762480240709,-2548.9663121,0.00017567,2]
[393328040,1762480240718,-1100.0,0.000176,6]
[393328041,1762480240727,-825.0,0.00017603,2]
[393328042,1762480240737,-1002.0,0.00017608,2]
[393328043,1762480240746,-2892.0,0.00017628,2]
[393328044,1762480240756,-477.87911524,0.0001763,2]
[393328045,1762480240765,-858.67951111,0.00017633,2]
[393328046,1762480240779,-2548.9663121,0.00017633,2]
[393328047,1762480240789,-893.85465609,0.00017644,2]
[393328048,1762480240798,-181.03,0.00017647,2]
[393328049,1762480240807,-253.0,0.00017675,2]
[393328050,1762480240819,-538.05087758,0.00017699,2]
[393328051,1762480240832,-500.0,0.00017699,2]
[393328052,1762480240841,-500.0,0.00017699,2]
[393328053,1762480240853,-500.0,0.00017699,2]
[393328054,1762480240862,-500.0,0.00017699,2]
[393328055,1762480240872,-500.0,0.00017699,2]
[393328056,1762480240881,-509.00306592,0.00017699,2]
[393328057,1762480240891,-500.0,0.00017699,2]
[393328058,1762480240900,-603.20162045,0.00017699,2]
[393328059,1762480240910,-2425.60783784,0.000177,2]
[393328060,1762480240919,-1500.0,0.000177,6]
[393328061,1762480240930,-858.67951111,0.000177,2]
[393328062,1762480240940,-2548.9663121,0.000177,2]
[393328063,1762480240950,-1010.0,0.000177,2]
[393328064,1762480240959,-221.84453216,0.00017754,2]
[393328065,1762480240969,-1098.25,0.00017759,2]
[393328066,1762480240980,-500.0,0.00017766,2]
[393328067,1762480240989,-858.67951111,0.00017767,2]
[393328068,1762480240998,-2548.9663121,0.00017767,2]
[393328069,1762480241008,-191.59,0.000178,2]
[393328070,1762480241018,-1098.32,0.000178,2]
[393328071,1762480241027,-1900.0,0.000178,6]
[393328072,1762480241038,-5683.63227,0.0001782,2]
[393328073,1762480241048,-500.0,0.00017833,2]
[393328074,1762480241057,-500.0,0.00017833,2]
[393328075,1762480241067,-500.0,0.00017833,2]
[393328076,1762480241076,-500.0,0.00017833,2]
[393328077,1762480241086,-500.0,0.00017833,2]
[393328078,1762480241096,-530.89538618,0.00017833,2]
[393328079,1762480241105,-858.67951111,0.00017833,2]
[393328080,1762480241114,-2548.9663121,0.00017833,2]
[393328081,1762480241123,-5000.0,0.00017845,2]
[393328082,1762480241133,-1002.0,0.00017849,2]
[393328083,1762480241142,-293.0,0.00017857,2]
[393328084,1762480241152,-1659.32429995,0.00017867,2]
[393328085,1762480241161,-1002.0,0.00017891,2]
[393328086,1762480241170,-244.77701906,0.00017899,2]
[393328087,1762480241180,-150.0,0.00017899,2]
[393328088,1762480241189,-150.0,0.00017899,2]
[393328089,1762480241199,-150.0,0.00017899,2]
[393328090,1762480241207,-150.0,0.00017899,2]
[393328091,1762480241216,-150.0,0.00017899,2]
[393328092,1762480241226,-150.0,0.00017899,2]
[393328093,1762480241235,-150.0,0.00017899,2]
[393328094,1762480241245,-150.0,0.00017899,2]
[393328095,1762480241254,-500.0,0.00017899,2]
[393328096,1762480241263,-150.0,0.00017899,2]
[393328097,1762480241272,-500.0,0.00017899,2]
[393328098,1762480241280,-571.0,0.00017899,2]
[393328099,1762480241290,-500.0,0.00017899,2]
[393328100,1762480241300,-500.0,0.00017899,2]
[393328101,1762480241310,-206.29164213,0.00017899,2]
[393328102,1762480241320,-202.69959715,0.00017899,2]
[393328103,1762480241329,-150.0,0.00017899,2]
[393328104,1762480241338,-500.0,0.00017899,2]
[393328105,1762480241347,-500.0,0.00017899,2]
[393328106,1762480241356,-150.0,0.00017899,2]
[393328107,1762480241365,-150.0,0.00017899,2]
[393328108,1762480241375,-173.26448643,0.000179,2]
[393328109,1762480241384,-368.26,0.000179,2]
[393328110,1762480241394,-163.49583489,0.000179,2]
[393328111,1762480241403,-1000.0,0.000179,2]
[393328112,1762480241413,-300.0,0.000179,6]
[393328113,1762480241423,-858.67951111,0.000179,2]
[393328114,1762480241432,-2548.9663121,0.000179,2]
[393328115,1762480241441,-515.63484931,0.00017909,2]
[393328116,1762480241451,-500.0,0.00017909,2]
[393328117,1762480241460,-829.81666734,0.00017921,2]
[393328118,1762480241469,-1000.0,0.00017921,2]
[393328119,1762480241478,-1002.64787463,0.00017921,2]
[393328120,1762480241487,-500.9429699,0.00017921,2]
[393328121,1762480241497,-1000.0,0.00017921,2]
[393328122,1762480241506,-471.70227648,0.00017921,2]
[393328123,1762480241515,-1002.54057635,0.00017921,2]
[393328124,1762480241524,-1000.0,0.00017921,2]
[393328125,1762480241533,-502.91924862,0.00017921,2]
[393328126,1762480241542,-972.7342192,0.00017928,2]
[393328127,1762480241551,-7655.9008205,0.00017928,2]
[393328128,1762480241559,-698.56,0.00017935,2]
[393328129,1762480241569,-167.0,0.00017945,2]
[393328130,1762480241579,-324.48002214,0.00017962,2]
[393328131,1762480241588,-500.0,0.00017962,2]
[393328132,1762480241597,-1316.0,0.00017963,2]
[393328133,1762480241606,-574.0,0.00017963,2]
[393328134,1762480241615,-3424.0,0.00017963,2]
[393328135,1762480241623,-609.363,0.00017963,2]
[393328136,1762480241632,-820.0,0.00017963,2]
[393328137,1762480241641,-1596.0,0.00017963,2]
[393328138,1762480241650,-1274.403,0.00017963,2]
[393328139,1762480241659,-814.749,0.00017963,2]
[393328140,1762480241668,-6669.989,0.00017963,2]
[393328141,1762480241678,-6476.0,0.00017963,2]
[393328142,1762480241687,-559.0,0.00017963,2]
[393328143,1762480241697,-2142.0,0.00017963,2]
[393328144,1762480241706,-5800.0,0.00017965,2]
[393328145,1762480241716,-503.31630794,0.00017966,2]
[393328146,1762480241725,-500.0,0.00017966,2]
[393328147,1762480241734,-505.6132436,0.00017966,2]
[393328148,1762480241743,-500.0,0.00017966,2]
[393328149,1762480241753,-500.0,0.00017966,2]
[393328150,1762480241767,-579.3877229,0.00017966,2]
[393328151,1762480241777,-200325.6370165,0.00017967,2]
[393328152,1762480241787,-3437.3117541,0.00017967,2]
[393328153,1762480241798,-510.94694796,0.00017972,2]
[393328154,1762480241808,-444.0,0.00017973,2]
[393328155,1762480241818,-503.85495564,0.00017973,2]
[393328156,1762480241827,-500.0,0.00017973,2]
[393328157,1762480241837,-576.8099022,0.00017973,2]
[393328158,1762480241848,-500.0,0.00017973,2]
[393328159,1762480241858,-500.0,0.00017973,2]
[393328160,1762480241868,-500.0,0.00017973,2]
[393328161,1762480241878,-500.0,0.00017973,2]
[393328162,1762480241888,-500.0,0.00017973,2]
[393328163,1762480241899,-500.0,0.00017973,2]
[393328164,1762480241909,-500.0,0.00017973,2]
[393328165,1762480241919,-158.19215752,0.00017973,2]
[393328166,1762480241930,-500.0,0.00017973,2]
[393328167,1762480241940,-500.0,0.00017973,2]
[393328168,1762480241950,-500.0,0.00017973,2]
[393328169,1762480241961,-500.0,0.00017973,2]
[393328170,1762480241970,-330.33341059,0.00017973,2]
[393328171,1762480241980,-500.0,0.00017973,2]
[393328172,1762480241989,-500.0,0.00017973,2]
[393328173,1762480242000,-500.77100973,0.00017973,2]
[393328174,1762480242010,-501.02087707,0.00017973,2]
[393328175,1762480242019,-467.21226766,0.00017973,2]
[393328176,1762480242029,-500.85457018,0.00017973,2]
[393328177,1762480242038,-505.50862562,0.00017973,2]
[393328178,1762480242047,-500.0,0.00017973,2]
[393328179,1762480242057,-500.0,0.00017973,2]
[393328180,1762480242067,-500.0,0.00017973,2]
[393328181,1762480242077,-500.0,0.00017973,2]
[393328182,1762480242087,-585.8,0.00017973,2]
[393328183,1762480242096,-150.0,0.00017973,2]
[393328184,1762480242105,-5800.0,0.00017973,2]
[393328185,1762480242115,-5800.0,0.00017982,2]
[393328186,1762480242124,-5800.0,0.0001799,2]
[393328187,1762480242133,-500.0,0.00017993,2]
[393328188,1762480242142,-500.0,0.00017993,2]
[393328189,1762480242152,-460.63090937,0.00017996,2]
[393328190,1762480242162,-27024.0461585,0.00017997,2]
[393328191,1762480242172,-1000.0,0.00017999,2]
[393328192,1762480242182,-539.43292972,0.00017999,3]
[393328193,1762480242191,-311.42728449,0.00017999,2]
[393328194,1762480242201,-500.0,0.00017999,2]
[393328195,1762480242212,-500.0,0.00017999,2]
[393328196,1762480242222,-500.0,0.00017999,2]
[393328197,1762480242232,-500.0,0.00017999,2]
[393328198,1762480242242,-500.0,0.00017999,2]
[393328199,1762480242252,-521.42005394,0.00017999,2]
[393328200,1762480242262,-5800.0,0.00017999,2]
[393328201,1762480242271,-500.0,0.00017999,2]
[393328202,1762480242280,-500.0,0.00017999,2]
[393328203,1762480242289,-500.0,0.00017999,2]
[393328204,1762480242298,-500.0,0.00017999,2]
[393328205,1762480242307,-500.0,0.00017999,2]
[393328206,1762480242317,-500.0,0.00017999,2]
[393328207,1762480242329,-500.0,0.00017999,2]
[393328208,1762480242339,-500.0,0.00017999,2]
[393328209,1762480242348,-506.28700882,0.00017999,2]
[393328210,1762480242358,-500.0,0.00017999,2]
[393328211,1762480242367,-500.0,0.00017999,2]
[393328212,1762480242377,-515.15103087,0.00017999,2]
[393328213,1762480242387,-2069.0,0.00018,2]
[393328214,1762480242396,-1068953.91434952,0.00018,2]
[393328238,1762480243651,-461.412428,0.000174,2]
[393328239,1762480243808,-87.747572,0.000174,2]
[393328240,1762480243821,-233.18114691,0.000177,2]
[393328241,1762480243833,-258.54527994,0.000177,2]
[393328242,1762480243845,-1659.32429995,0.00017884,2]
[393328243,1762480243857,-500.0,0.00017899,2]
[393328244,1762480243868,-28564.60446865,0.00018,2]
[393328245,1762480243882,-484453.5505169,0.00018,2]
[393328246,1762480243895,-2616.63162126,0.00018,2]
[393328247,1762480243915,-150.0,0.00017899,2]
[393328248,1762480243926,-862.85979988,0.00018,2]
[393328249,1762480243980,-576.13387975,0.00018,2]
[393328250,1762480244037,-1130.40073013,0.00018,2]
[393328251,1762480244048,-1338.89025357,0.00018,2]
[393328256,1762480246576,-337.31294928,0.00017399,2]
[393328257,1762480246588,-162.68705072,0.00017399,2]
[393328258,1762480246598,-500.0,0.00017766,2]
[393328259,1762480246610,-150.0,0.00017899,2]
[393328260,1762480246620,-258.86194928,0.00017966,2]
[393328261,1762480246684,-241.13805072,0.00017966,2]
[393328262,1762480246694,-500.0,0.00017999,2]
[393328263,1762480246704,-251.86194928,0.00017999,2]
[393328264,1762480246716,-248.13805072,0.00017999,2]
[393328265,1762480246726,-254.76416005,0.00017999,2]
[393328266,1762480246736,-1088.59090811,0.00018,2]
[393328267,1762480246893,-411.24207859,0.000179,2]
[393328268,1762480246906,-506.94367834,0.000179,2]
[393328277,1762480333520,254.08725164,0.00038711,120]
[393328286,1762480494332,249.0,0.00038711,30]
[393328287,1762480711295,785.25,0.00013699,2]
[393328290,1762480769133,175.22,0.00013243,2]
[393328295,1762481016612,-300.00772377,0.00016355,2]
[393328296,1762481020061,-496.99827417,0.00016355,2]
[393328297,1762481022724,-332.5342894,0.00016355,2]
[393328298,1762481061646,-305.35706028,0.00016355,2]
[393328299,1762481063913,-185.643281,0.00016355,2]
[393328302,1762481159319,237.00538602,0.00014483,2]
[393328305,1762481299801,500.0,0.00038707,120]
[393328306,1762481300115,500.0,0.00038707,120]
[393328307,1762481300565,500.0,0.00038707,120]
[393328308,1762481301217,500.0,0.00038707,120]
[393328309,1762481301256,500.0,0.00038707,120]
[393328310,1762481301380,500.0,0.00038707,120]
[393328311,1762481301624,500.0,0.00038707,120]
[393328312,1762481301874,500.0,0.00038707,120]
[393328313,1762481302170,500.0,0.00038707,120]
[393328314,1762481302431,500.0,0.00038707,120]
[393328315,1762481302665,500.0,0.00038707,120]
[393328316,1762481302910,500.0,0.00038707,120]
[393328317,1762481303157,511.10826542,0.00038707,120]
[393328320,1762481431480,-536.8240265,0.00016304,2]
[393328321,1762481431492,-878.8291015,0.00016304,2]
[393328322,1762481431501,-150.0,0.0001635,2]
[393328323,1762481431511,-250.0,0.00016386,2]
[393328324,1762481431521,-428.71986906,0.00016428,2]
[393328325,1762481431584,-571.28013094,0.00016428,2]
[393328326,1762481431594,-166.66,0.00016437,2]
[393328327,1762481431603,-224.39,0.00016438,2]
[393328328,1762481431613,-1200.0,0.00016505,2]
[393328329,1762481431623,-336.0,0.00016506,2]
[393328330,1762481431633,-300.0,0.00016506,2]
[393328331,1762481431642,-987.59112664,0.00016507,2]
[393328332,1762481431654,-13095.56887336,0.00016507,2]
[393328333,1762481431664,-200.0,0.00016635,2]
[393328334,1762481431673,-166.66,0.00016783,2]
[393328335,1762481431683,-250.0,0.00017,2]
[393328336,1762481431692,-166.66,0.00017129,2]
[393328337,1762481431704,-272.9,0.00017157,2]
[393328338,1762481431713,-2441.587,0.000172,2]
[393328339,1762481431723,-234.3744,0.000172,2]
[393328340,1762481431732,-962.44247225,0.00017266,2]
[393328341,1762481431748,-1273.63867261,0.00017266,2]
[393328342,1762481431758,-269.52332739,0.00017266,2]
[393328343,1762481431777,-697.68676596,0.00017266,2]
[393328344,1762481431792,-1268.87105151,0.00017266,2]
[393328345,1762481431802,-550.0,0.00017272,2]
[393328346,1762481431811,-500.0,0.00017273,2]
[393328347,1762481431821,-7.10032049,0.00017273,2]
[393328447,1762481437471,-500.0,0.00017199,2]
[393328448,1762481437482,-396.40182499,0.00017199,2]
[393328449,1762481437554,-103.59817501,0.00017199,2]
[393328450,1762481437563,-560.68718388,0.00017199,2]
[393328451,1762481437572,-464.60195599,0.00017273,2]
[393328452,1762481437582,-500.9429699,0.00017273,2]
[393328453,1762481437592,-500.0,0.00017273,2]
[393328454,1762481437602,-500.0,0.00017273,2]
[393328455,1762481437612,-171.65400236,0.00017273,2]
[393328456,1762481437624,-500.0,0.00017273,2]
[393328457,1762481437634,-500.2561312,0.00017273,2]
[393328458,1762481437644,-146.79651701,0.00017273,2]
[393328459,1762481437858,-257.06271525,0.00017273,2]
[393328460,1762481437868,-40.21696376,0.00017273,2]
[393328462,1762481439597,-460.61355432,0.00017273,2]
[393328463,1762481439606,-500.0,0.00017273,2]
[393328464,1762481439616,-500.0,0.00017273,2]
[393328465,1762481439624,-502.91924862,0.00017273,2]
[393328466,1762481439634,-166.66,0.00017273,2]
[393328467,1762481439643,-260.92709679,0.0001729,2]
[393328468,1762481439651,-151.0,0.0001729,2]
[393328469,1762481439660,-151.0,0.0001729,2]
[393328470,1762481439669,-151.0,0.0001729,2]
[393328471,1762481439677,-151.0,0.0001729,2]
[393328472,1762481439686,-151.0,0.0001729,2]
[393328473,1762481439696,-151.0,0.0001729,2]
[393328474,1762481439705,-151.0,0.0001729,2]
[393328475,1762481439714,-151.0,0.0001729,2]
[393328476,1762481439723,-151.0,0.0001729,2]
[393328477,1762481439732,-151.0,0.0001729,2]
[393328478,1762481439742,-151.0,0.0001729,2]
[393328479,1762481439751,-163.60010958,0.0001729,2]
[393328480,1762481439760,-181.88166078,0.00017297,2]
[393328481,1762481439769,-1002.33053948,0.00017298,2]
[393328482,1762481439777,-242.16873583,0.00017299,2]